[Event "Early-Titled-Tuesday-Blitz-February-06-2024"]
[Site "Chess.com"]
[Date "2024.02.06"]
[Round "6"]
[White "Nikolakis2014"]
[Black "Levanzovsky"]
[Result "1-0"]
[WhiteElo "2726"]
[BlackElo "2513"]
[TimeControl "180+1"]
[EndTime "9:07:05 PST"]
[Termination "Nikolakis2014 won on time"]

1. Nf3 {[%clk 0:03:00.9]} 1... Nf6 {[%clk 0:02:58.7]} 2. c4 {[%clk 0:03:00.5]}
2... e6 {[%clk 0:02:58.6]} 3. g3 {[%clk 0:03:00]} 3... d5 {[%clk 0:02:59.1]} 4.
d4 {[%clk 0:02:59.7]} 4... c5 {[%clk 0:02:59]} 5. Bg2 {[%clk 0:02:59]} 5... Nc6
{[%clk 0:02:55.2]} 6. O-O {[%clk 0:02:58.8]} 6... cxd4 {[%clk 0:02:48.5]} 7.
Nxd4 {[%clk 0:02:57.3]} 7... Bc5 {[%clk 0:02:48.4]} 8. Nb3 {[%clk 0:02:55.6]}
8... Be7 {[%clk 0:02:42.4]} 9. cxd5 {[%clk 0:02:54.9]} 9... Nxd5 {[%clk
0:02:42.2]} 10. e4 {[%clk 0:02:52.7]} 10... Ndb4 {[%clk 0:02:40]} 11. Qxd8+
{[%clk 0:02:48]} 11... Bxd8 {[%clk 0:02:40]} 12. Nc3 {[%clk 0:02:48.3]} 12...
Nd3 {[%clk 0:02:34.8]} 13. Rd1 {[%clk 0:02:45]} 13... Nxc1 {[%clk 0:02:32.8]}
14. Raxc1 {[%clk 0:02:44.4]} 14... Bb6 {[%clk 0:02:16.1]} 15. Na4 {[%clk
0:02:41.5]} 15... Ke7 {[%clk 0:02:14]} 16. Nbc5 {[%clk 0:02:38.5]} 16... Rd8
{[%clk 0:02:10.2]} 17. Kf1 {[%clk 0:02:34.1]} 17... Rxd1+ {[%clk 0:02:01.2]} 18.
Rxd1 {[%clk 0:02:32.4]} 18... Bxc5 {[%clk 0:01:46.1]} 19. Nxc5 {[%clk
0:02:30.7]} 19... b6 {[%clk 0:01:45.9]} 20. e5 {[%clk 0:02:10.1]} 20... bxc5
{[%clk 0:01:46]} 21. Bxc6 {[%clk 0:02:10.3]} 21... Rb8 {[%clk 0:01:46.7]} 22. b3
{[%clk 0:02:10.6]} 22... Rb6 {[%clk 0:01:34.9]} 23. Ba4 {[%clk 0:02:02.6]} 23...
Rb4 {[%clk 0:00:57.1]} 24. f4 {[%clk 0:01:57.1]} 24... f6 {[%clk 0:00:38.4]} 25.
Rd6 {[%clk 0:01:42.7]} 25... fxe5 {[%clk 0:00:35.1]} 26. fxe5 {[%clk 0:01:42.9]}
26... Re4 {[%clk 0:00:31.6]} 27. Rc6 {[%clk 0:01:42.3]} 27... Kd8 {[%clk
0:00:10.9]} 28. Rxc5 {[%clk 0:01:40.9]} 28... Ba6+ {[%clk 0:00:11.2]} 29. Bb5
{[%clk 0:01:38.5]} 29... Bxb5+ {[%clk 0:00:08.5]} 30. Rxb5 {[%clk 0:01:38.3]}
30... Kc7 {[%clk 0:00:09.1]} 31. a4 {[%clk 0:01:31.9]} 31... a6 {[%clk 0:00:07]}
32. Rc5+ {[%clk 0:01:28.7]} 32... Kb6 {[%clk 0:00:06.9]} 33. Rc8 {[%clk
0:01:24.6]} 33... Rxe5 {[%clk 0:00:05.9]} 34. Rg8 {[%clk 0:01:18.3]} 34... Rg5
{[%clk 0:00:05.8]} 35. Kf2 {[%clk 0:01:17]} 35... Kc5 {[%clk 0:00:05.1]} 36. Rb8
{[%clk 0:01:16]} 36... Kd4 {[%clk 0:00:03]} 37. Rb6 {[%clk 0:01:13.5]} 37... e5
{[%clk 0:00:01.8]} 38. Rxa6 {[%clk 0:01:12.5]} 38... e4 {[%clk 0:00:02.2]} 39.
Ke2 {[%clk 0:01:12.8]} 39... Rc5 {[%clk 0:00:02.2]} 40. Rd6+ {[%clk 0:01:10.8]}
40... Ke5 {[%clk 0:00:02.7]} 41. Rd2 {[%clk 0:01:10.7]} 41... Rc3 {[%clk
0:00:03.2]} 42. Rb2 {[%clk 0:01:10.7]} 42... Kd4 {[%clk 0:00:03.3]} 43. a5
{[%clk 0:01:10.6]} 43... e3 {[%clk 0:00:02]} 44. a6 {[%clk 0:01:09.5]} 44... Rc6
{[%clk 0:00:02.4]} 45. Ra2 {[%clk 0:01:08.6]} 45... Rf6 {[%clk 0:00:02.8]} 46.
Ra4+ {[%clk 0:01:04.2]} 1-0

[Event "Early-Titled-Tuesday-Blitz-February-06-2024"]
[Site "Chess.com"]
[Date "2024.02.06"]
[Round "6"]
[White "Rosh1610"]
[Black "kecalk"]
[Result "0-1"]
[WhiteElo "2351"]
[BlackElo "2504"]
[TimeControl "180+1"]
[EndTime "9:07:05 PST"]
[Termination "kecalk won on time"]

1. e4 {[%clk 0:03:00.9]} 1... c5 {[%clk 0:02:58.6]} 2. Nc3 {[%clk 0:02:59.7]}
2... Nc6 {[%clk 0:02:58.3]} 3. f4 {[%clk 0:03:00.2]} 3... g6 {[%clk 0:02:57.8]}
4. Nf3 {[%clk 0:03:00.5]} 4... Bg7 {[%clk 0:02:58.5]} 5. Bc4 {[%clk 0:03:00.9]}
5... e6 {[%clk 0:02:53.8]} 6. f5 {[%clk 0:02:59.2]} 6... gxf5 {[%clk 0:02:49.3]}
7. exf5 {[%clk 0:02:59.2]} 7... d5 {[%clk 0:02:49.3]} 8. Bb5 {[%clk 0:02:58.8]}
8... Ne7 {[%clk 0:02:30.8]} 9. fxe6 {[%clk 0:02:58]} 9... fxe6 {[%clk 0:02:28]}
10. d4 {[%clk 0:02:56.5]} 10... cxd4 {[%clk 0:02:21.3]} 11. Nxd4 {[%clk
0:02:56.5]} 11... O-O {[%clk 0:02:21.7]} 12. Be3 {[%clk 0:02:54.6]} 12... e5
{[%clk 0:02:10.2]} 13. Nxc6 {[%clk 0:02:54.3]} 13... bxc6 {[%clk 0:02:10.4]} 14.
Bd3 {[%clk 0:02:42]} 14... d4 {[%clk 0:02:06.9]} 15. Bc4+ {[%clk 0:02:42.1]}
15... Kh8 {[%clk 0:02:05.7]} 16. Bg5 {[%clk 0:02:41.8]} 16... h6 {[%clk
0:01:26.3]} 17. Bxe7 {[%clk 0:02:41.2]} 17... Qxe7 {[%clk 0:01:24.3]} 18. Ne4
{[%clk 0:02:39.6]} 18... Qb4+ {[%clk 0:01:08.2]} 19. Nd2 {[%clk 0:02:39.1]}
19... e4 {[%clk 0:01:08.8]} 20. a3 {[%clk 0:02:38.8]} 20... Qe7 {[%clk
0:01:02.5]} 21. Qe2 {[%clk 0:02:37.5]} 21... e3 {[%clk 0:00:39.1]} 22. Nf3
{[%clk 0:02:37.2]} 22... Rb8 {[%clk 0:00:39.7]} 23. O-O {[%clk 0:02:32.2]} 23...
Rxb2 {[%clk 0:00:34.4]} 24. Qd3 {[%clk 0:02:26.4]} 24... Bf5 {[%clk 0:00:32.3]}
25. Qd1 {[%clk 0:02:12.2]} 25... Bxc2 {[%clk 0:00:29.8]} 26. Qb1 {[%clk
0:02:12.6]} 26... Bxb1 {[%clk 0:00:29]} 0-1

[Event "Early-Titled-Tuesday-Blitz-February-06-2024"]
[Site "Chess.com"]
[Date "2024.02.06"]
[Round "6"]
[White "Makswolf200817"]
[Black "koncheto"]
[Result "1-0"]
[WhiteElo "2713"]
[BlackElo "2513"]
[TimeControl "180+1"]
[EndTime "9:07:06 PST"]
[Termination "Makswolf200817 won on time"]

1. e4 {[%clk 0:03:00.9]} 1... c5 {[%clk 0:02:59]} 2. Nf3 {[%clk 0:02:59.8]} 2...
d6 {[%clk 0:02:59.3]} 3. d4 {[%clk 0:03:00.1]} 3... cxd4 {[%clk 0:02:59.6]} 4.
Nxd4 {[%clk 0:03:00.8]} 4... Nf6 {[%clk 0:03:00.1]} 5. Nc3 {[%clk 0:03:01.4]}
5... Nc6 {[%clk 0:03:00.7]} 6. f3 {[%clk 0:03:00.5]} 6... e6 {[%clk 0:02:58.3]}
7. Be3 {[%clk 0:02:58.1]} 7... a6 {[%clk 0:02:57.4]} 8. Qd2 {[%clk 0:02:55.7]}
8... Qc7 {[%clk 0:02:57]} 9. g4 {[%clk 0:02:52.2]} 9... b5 {[%clk 0:02:53.7]}
10. g5 {[%clk 0:02:45.1]} 10... Nd7 {[%clk 0:02:53.6]} 11. a3 {[%clk 0:02:44.8]}
11... Bb7 {[%clk 0:02:50.7]} 12. O-O-O {[%clk 0:02:43.3]} 12... Be7 {[%clk
0:02:47.8]} 13. Kb1 {[%clk 0:02:38.6]} 13... Rc8 {[%clk 0:02:40.4]} 14. h4
{[%clk 0:02:35.9]} 14... Nde5 {[%clk 0:02:11.9]} 15. Qf2 {[%clk 0:02:17.6]}
15... Na5 {[%clk 0:02:08.2]} 16. Ndxb5 {[%clk 0:02:05.4]} 16... Qb8 {[%clk
0:01:49.5]} 17. Ba7 {[%clk 0:01:58.1]} 17... Qa8 {[%clk 0:01:47.7]} 18. Nxd6+
{[%clk 0:01:55.5]} 18... Bxd6 {[%clk 0:01:38.7]} 19. Rxd6 {[%clk 0:01:56.4]}
19... Rxc3 {[%clk 0:01:15]} 20. bxc3 {[%clk 0:01:52.7]} 20... O-O {[%clk
0:01:06.5]} 21. Bc5 {[%clk 0:01:38.2]} 21... Nxf3 {[%clk 0:00:54]} 22. Bb4
{[%clk 0:01:18.5]} 22... Nc6 {[%clk 0:00:33.4]} 23. Rxc6 {[%clk 0:00:48.8]}
23... Bxc6 {[%clk 0:00:32.9]} 24. Bxf8 {[%clk 0:00:49.4]} 24... Kxf8 {[%clk
0:00:28.7]} 25. Bd3 {[%clk 0:00:48.4]} 25... Bxe4 {[%clk 0:00:15]} 26. Rf1
{[%clk 0:00:39.2]} 26... Qb8+ {[%clk 0:00:04.2]} 27. Ka1 {[%clk 0:00:37.7]}
27... Qe5 {[%clk 0:00:03.4]} 28. Bxe4 {[%clk 0:00:37.1]} 28... Qxc3+ {[%clk
0:00:03.7]} 29. Ka2 {[%clk 0:00:31.5]} 29... Qc4+ {[%clk 0:00:03.7]} 30. Kb2
{[%clk 0:00:31.8]} 30... Qb5+ {[%clk 0:00:01.9]} 31. Kc1 {[%clk 0:00:32.2]} 1-0

[Event "Early-Titled-Tuesday-Blitz-February-06-2024"]
[Site "Chess.com"]
[Date "2024.02.06"]
[Round "6"]
[White "PapaieDudu"]
[Black "Huragan007"]
[Result "0-1"]
[WhiteElo "2421"]
[BlackElo "2590"]
[TimeControl "180+1"]
[EndTime "9:07:06 PST"]
[Termination "Huragan007 won by resignation"]

1. Nf3 {[%clk 0:02:51.2]} 1... Nf6 {[%clk 0:02:59.6]} 2. d4 {[%clk 0:02:51.4]}
2... g6 {[%clk 0:03:00.3]} 3. Bf4 {[%clk 0:02:46.7]} 3... Bg7 {[%clk 0:03:00.5]}
4. e3 {[%clk 0:02:46.1]} 4... d6 {[%clk 0:03:01.2]} 5. Bd3 {[%clk 0:02:44.8]}
5... O-O {[%clk 0:03:01.6]} 6. h3 {[%clk 0:02:44.4]} 6... Nbd7 {[%clk
0:03:02.2]} 7. O-O {[%clk 0:02:37.6]} 7... Qe8 {[%clk 0:03:02.9]} 8. Bh2 {[%clk
0:02:35.4]} 8... e5 {[%clk 0:03:01.5]} 9. dxe5 {[%clk 0:02:03.9]} 9... dxe5
{[%clk 0:03:02.4]} 10. e4 {[%clk 0:02:03.8]} 10... b6 {[%clk 0:02:52.8]} 11. Qe2
{[%clk 0:02:02.6]} 11... Bb7 {[%clk 0:02:51.6]} 12. Nbd2 {[%clk 0:02:00.9]}
12... Nh5 {[%clk 0:02:37.9]} 13. Rfe1 {[%clk 0:01:58.6]} 13... Qe7 {[%clk
0:02:27.5]} 14. Nc4 {[%clk 0:01:52.8]} 14... Rae8 {[%clk 0:02:13.2]} 15. Ne3
{[%clk 0:01:35.7]} 15... Nf4 {[%clk 0:02:05.2]} 16. Bxf4 {[%clk 0:01:35.6]}
16... exf4 {[%clk 0:02:06.1]} 17. Nc4 {[%clk 0:01:25.4]} 17... Nc5 {[%clk
0:01:49.8]} 18. Ncd2 {[%clk 0:01:23.7]} 18... Bxb2 {[%clk 0:01:47.6]} 19. Rab1
{[%clk 0:01:12.7]} 19... Bc3 {[%clk 0:01:44.2]} 20. Red1 {[%clk 0:01:08.8]}
20... f5 {[%clk 0:01:34.4]} 21. e5 {[%clk 0:01:01.9]} 21... Bxe5 {[%clk
0:01:25.6]} 22. Bc4+ {[%clk 0:00:58.3]} 22... Kg7 {[%clk 0:01:24.8]} 23. Nxe5
{[%clk 0:00:56.5]} 23... Qxe5 {[%clk 0:01:24.9]} 24. Qf1 {[%clk 0:00:55.7]}
24... f3 {[%clk 0:01:09.1]} 25. gxf3 {[%clk 0:00:53.1]} 25... Qf4 {[%clk
0:01:05.7]} 26. Qg2 {[%clk 0:00:42.7]} 26... Rd8 {[%clk 0:00:58.7]} 27. Nf1
{[%clk 0:00:32.6]} 27... Rxd1 {[%clk 0:00:50.2]} 28. Rxd1 {[%clk 0:00:33]} 28...
Bxf3 {[%clk 0:00:50.4]} 29. Qg3 {[%clk 0:00:32.1]} 29... Qxg3+ {[%clk
0:00:50.7]} 30. fxg3 {[%clk 0:00:31.1]} 30... Bxd1 {[%clk 0:00:51.6]} 31. Ne3
{[%clk 0:00:31.8]} 31... Bf3 {[%clk 0:00:49]} 32. Kf2 {[%clk 0:00:32.5]} 32...
Be4 {[%clk 0:00:48.9]} 33. Bb5 {[%clk 0:00:32.2]} 33... c6 {[%clk 0:00:48.8]}
34. Be2 {[%clk 0:00:31.9]} 34... Rd8 {[%clk 0:00:48.4]} 35. h4 {[%clk
0:00:29.4]} 35... a5 {[%clk 0:00:46.2]} 36. Nc4 {[%clk 0:00:29.4]} 36... b5
{[%clk 0:00:41.9]} 37. Nxa5 {[%clk 0:00:29.6]} 37... Rd2 {[%clk 0:00:38.7]} 38.
Ke3 {[%clk 0:00:29.3]} 38... Rxc2 {[%clk 0:00:38.2]} 39. a3 {[%clk 0:00:25.2]}
39... Ra2 {[%clk 0:00:33.6]} 0-1

[Event "Early-Titled-Tuesday-Blitz-February-06-2024"]
[Site "Chess.com"]
[Date "2024.02.06"]
[Round "6"]
[White "Perecke"]
[Black "CADMartin"]
[Result "0-1"]
[WhiteElo "2586"]
[BlackElo "2461"]
[TimeControl "180+1"]
[EndTime "9:07:07 PST"]
[Termination "CADMartin won on time"]

1. e4 {[%clk 0:03:00.9]} 1... c5 {[%clk 0:02:58.7]} 2. Nf3 {[%clk 0:03:00.8]}
2... d6 {[%clk 0:02:59.3]} 3. d4 {[%clk 0:03:01]} 3... cxd4 {[%clk 0:03:00.2]}
4. Nxd4 {[%clk 0:03:01.8]} 4... Nf6 {[%clk 0:03:00.2]} 5. Nc3 {[%clk 0:03:01.9]}
5... a6 {[%clk 0:03:00.9]} 6. Bg5 {[%clk 0:03:01]} 6... e6 {[%clk 0:02:58.7]} 7.
f4 {[%clk 0:03:01.2]} 7... h6 {[%clk 0:02:59.2]} 8. Bh4 {[%clk 0:02:59.8]} 8...
Qb6 {[%clk 0:02:59.4]} 9. a3 {[%clk 0:02:57.2]} 9... Be7 {[%clk 0:02:59.4]} 10.
Bf2 {[%clk 0:02:55.7]} 10... Qc7 {[%clk 0:02:59.9]} 11. Qf3 {[%clk 0:02:53.2]}
11... e5 {[%clk 0:02:59.1]} 12. Nf5 {[%clk 0:02:51.5]} 12... Bxf5 {[%clk
0:02:56.8]} 13. exf5 {[%clk 0:02:52.4]} 13... Nbd7 {[%clk 0:02:57.2]} 14. O-O-O
{[%clk 0:02:51.1]} 14... Rc8 {[%clk 0:02:57.8]} 15. g4 {[%clk 0:02:50.6]} 15...
e4 {[%clk 0:02:56]} 16. Qg3 {[%clk 0:02:45.7]} 16... d5 {[%clk 0:02:55.6]} 17.
g5 {[%clk 0:02:35.8]} 17... Nh5 {[%clk 0:02:53.4]} 18. Qg4 {[%clk 0:02:23.9]}
18... Bxa3 {[%clk 0:02:33.6]} 19. Bd4 {[%clk 0:02:13.9]} 19... hxg5 {[%clk
0:02:06.8]} 20. bxa3 {[%clk 0:01:45]} 20... gxf4 {[%clk 0:02:01.7]} 21. Rd2
{[%clk 0:00:51.8]} 21... Ne5 {[%clk 0:01:46.7]} 22. Qg5 {[%clk 0:00:30.2]} 22...
Nf3 {[%clk 0:01:33.7]} 23. Nxd5 {[%clk 0:00:17.2]} 23... Nxg5 {[%clk 0:01:32.4]}
24. Nxc7+ {[%clk 0:00:17.6]} 24... Rxc7 {[%clk 0:01:33.3]} 25. Rg2 {[%clk
0:00:07.9]} 25... Nf3 {[%clk 0:01:14.4]} 26. Bxg7 {[%clk 0:00:07]} 26... Nxg7
{[%clk 0:01:14]} 27. Rxg7 {[%clk 0:00:07.4]} 27... Nd4 {[%clk 0:01:11.4]} 28.
Rg4 {[%clk 0:00:02.7]} 28... Nxc2 {[%clk 0:00:49]} 29. Rxf4 {[%clk 0:00:02.8]}
29... e3 {[%clk 0:00:49.2]} 30. Kd1 {[%clk 0:00:02.8]} 30... Ke7 {[%clk
0:00:46.3]} 31. Bd3 {[%clk 0:00:02.9]} 31... Rd8 {[%clk 0:00:45]} 32. Ke2 {[%clk
0:00:02.9]} 32... Nxa3 {[%clk 0:00:42.9]} 33. f6+ {[%clk 0:00:03.5]} 33... Ke6
{[%clk 0:00:41.9]} 34. Kxe3 {[%clk 0:00:03.1]} 34... Rc3 {[%clk 0:00:41.6]} 35.
Rd1 {[%clk 0:00:02.1]} 35... Nc4+ {[%clk 0:00:40.5]} 36. Rxc4 {[%clk 0:00:01.5]}
36... Rdxd3+ {[%clk 0:00:39.5]} 37. Rxd3 {[%clk 0:00:02.4]} 37... Rxc4 {[%clk
0:00:40.1]} 0-1

[Event "Early-Titled-Tuesday-Blitz-February-06-2024"]
[Site "Chess.com"]
[Date "2024.02.06"]
[Round "6"]
[White "AndresDelgado77"]
[Black "LornerAcosta"]
[Result "0-1"]
[WhiteElo "2350"]
[BlackElo "2502"]
[TimeControl "180+1"]
[EndTime "9:07:09 PST"]
[Termination "LornerAcosta won on time"]

1. e4 {[%clk 0:03:00.2]} 1... c5 {[%clk 0:02:58]} 2. Nf3 {[%clk 0:02:56.2]} 2...
Nc6 {[%clk 0:02:57.1]} 3. b4 {[%clk 0:02:53.1]} 3... Nxb4 {[%clk 0:02:56.3]} 4.
c3 {[%clk 0:02:52.9]} 4... Nc6 {[%clk 0:02:56.3]} 5. d4 {[%clk 0:02:53.2]} 5...
d5 {[%clk 0:02:55.8]} 6. exd5 {[%clk 0:02:52.9]} 6... Qxd5 {[%clk 0:02:55.4]} 7.
Be2 {[%clk 0:02:44.5]} 7... cxd4 {[%clk 0:02:53.9]} 8. cxd4 {[%clk 0:02:43.3]}
8... e6 {[%clk 0:02:53.4]} 9. O-O {[%clk 0:02:39.5]} 9... Nf6 {[%clk 0:02:49.8]}
10. Nc3 {[%clk 0:02:38.9]} 10... Qd8 {[%clk 0:02:47.9]} 11. Bf4 {[%clk
0:02:33.7]} 11... Bd6 {[%clk 0:02:47.1]} 12. Ne5 {[%clk 0:02:27]} 12... O-O
{[%clk 0:02:41.6]} 13. Bf3 {[%clk 0:02:18.9]} 13... Ne7 {[%clk 0:02:25.7]} 14.
Nb5 {[%clk 0:02:12.6]} 14... Bb8 {[%clk 0:02:24.5]} 15. Bg3 {[%clk 0:01:45.6]}
15... Nfd5 {[%clk 0:02:21.9]} 16. a4 {[%clk 0:01:35.7]} 16... Bd7 {[%clk
0:02:12.3]} 17. Rc1 {[%clk 0:01:21.8]} 17... a6 {[%clk 0:01:59.4]} 18. Na3
{[%clk 0:01:13.6]} 18... Nf5 {[%clk 0:01:58]} 19. Bxd5 {[%clk 0:01:08.5]} 19...
exd5 {[%clk 0:01:54.4]} 20. Qf3 {[%clk 0:00:52.1]} 20... Nxg3 {[%clk 0:01:42.1]}
21. fxg3 {[%clk 0:00:47.1]} 21... Bxe5 {[%clk 0:01:36]} 22. dxe5 {[%clk
0:00:42.5]} 22... Bxa4 {[%clk 0:01:36.5]} 23. Rb1 {[%clk 0:00:35.5]} 23... Bc6
{[%clk 0:01:28.9]} 24. Qf4 {[%clk 0:00:29]} 24... d4 {[%clk 0:01:23.1]} 25. Rfd1
{[%clk 0:00:27.9]} 25... Qd5 {[%clk 0:01:22.5]} 26. Rb2 {[%clk 0:00:25]} 26...
Rad8 {[%clk 0:01:20.2]} 27. Nc2 {[%clk 0:00:20.3]} 27... Ba4 {[%clk 0:01:01.3]}
28. Rxd4 {[%clk 0:00:16.6]} 28... Qc5 {[%clk 0:00:57.9]} 29. Qf2 {[%clk
0:00:08.9]} 29... Qxe5 {[%clk 0:00:51.7]} 30. Rxd8 {[%clk 0:00:06.7]} 30... Rxd8
{[%clk 0:00:51.5]} 31. Ne3 {[%clk 0:00:06.9]} 31... Bc6 {[%clk 0:00:51.2]} 32.
Re2 {[%clk 0:00:05.4]} 32... h5 {[%clk 0:00:49.8]} 33. Re1 {[%clk 0:00:03.8]}
33... Re8 {[%clk 0:00:48]} 34. Nc2 {[%clk 0:00:02.2]} 34... Qd5 {[%clk
0:00:46.6]} 35. Rxe8+ {[%clk 0:00:01.4]} 35... Bxe8 {[%clk 0:00:47.5]} 36. Ne3
{[%clk 0:00:01.6]} 36... Qe4 {[%clk 0:00:47.2]} 37. h3 {[%clk 0:00:01.9]} 37...
Bc6 {[%clk 0:00:47.3]} 38. Kh2 {[%clk 0:00:01.4]} 38... g6 {[%clk 0:00:47.4]}
0-1

[Event "Early-Titled-Tuesday-Blitz-February-06-2024"]
[Site "Chess.com"]
[Date "2024.02.06"]
[Round "6"]
[White "Payyappat"]
[Black "xamax2000"]
[Result "0-1"]
[WhiteElo "2496"]
[BlackElo "2862"]
[TimeControl "180+1"]
[EndTime "9:07:14 PST"]
[Termination "xamax2000 won on time"]

1. e4 {[%clk 0:03:00.9]} 1... e5 {[%clk 0:02:59.7]} 2. Nf3 {[%clk 0:02:59.8]}
2... Nc6 {[%clk 0:03:00.2]} 3. Bc4 {[%clk 0:02:57.4]} 3... Nf6 {[%clk 0:03:00]}
4. d4 {[%clk 0:02:54.3]} 4... exd4 {[%clk 0:02:59]} 5. e5 {[%clk 0:02:55.2]}
5... d5 {[%clk 0:02:58.2]} 6. Bb5 {[%clk 0:02:55.3]} 6... Ne4 {[%clk 0:02:57.2]}
7. Nxd4 {[%clk 0:02:54.8]} 7... Bd7 {[%clk 0:02:57.5]} 8. Bxc6 {[%clk
0:02:53.6]} 8... bxc6 {[%clk 0:02:58.4]} 9. O-O {[%clk 0:02:42.9]} 9... Bc5
{[%clk 0:02:58.9]} 10. c3 {[%clk 0:02:41.7]} 10... Bb6 {[%clk 0:02:53.2]} 11. f3
{[%clk 0:02:41]} 11... Ng5 {[%clk 0:02:46.8]} 12. f4 {[%clk 0:02:34.7]} 12...
Ne4 {[%clk 0:02:46.1]} 13. Nd2 {[%clk 0:02:30.4]} 13... c5 {[%clk 0:02:43.5]}
14. N4b3 {[%clk 0:02:25.4]} 14... c4+ {[%clk 0:02:36.4]} 15. Nd4 {[%clk
0:02:24.6]} 15... Nc5 {[%clk 0:02:10.1]} 16. Kh1 {[%clk 0:01:46.8]} 16... Nd3
{[%clk 0:02:08.9]} 17. Qf3 {[%clk 0:01:28.4]} 17... c5 {[%clk 0:01:28.7]} 18.
Qxd5 {[%clk 0:01:13.9]} 18... cxd4 {[%clk 0:01:21.4]} 19. Nxc4 {[%clk
0:01:13.8]} 19... O-O {[%clk 0:01:15.3]} 20. cxd4 {[%clk 0:01:03.7]} 20... Be6
{[%clk 0:01:10.4]} 21. Qxd8 {[%clk 0:01:02.9]} 21... Rfxd8 {[%clk 0:01:11.3]}
22. Nxb6 {[%clk 0:00:59.4]} 22... axb6 {[%clk 0:01:12.2]} 23. Be3 {[%clk
0:00:48.4]} 23... Nxb2 {[%clk 0:01:06.1]} 24. f5 {[%clk 0:00:45.9]} 24... Bd5
{[%clk 0:01:05.3]} 25. Rfb1 {[%clk 0:00:39.8]} 25... Nc4 {[%clk 0:01:04.8]} 26.
Bf2 {[%clk 0:00:38.8]} 26... Ra4 {[%clk 0:00:56.6]} 27. Rb5 {[%clk 0:00:22.4]}
27... Bc6 {[%clk 0:00:45]} 28. Rb3 {[%clk 0:00:20.9]} 28... Be4 {[%clk
0:00:45.5]} 29. h3 {[%clk 0:00:18.7]} 29... Bxf5 {[%clk 0:00:44.3]} 30. Bg1
{[%clk 0:00:10.4]} 30... Be6 {[%clk 0:00:43.9]} 31. Rd1 {[%clk 0:00:10]} 31...
h5 {[%clk 0:00:44]} 32. Rb5 {[%clk 0:00:09.1]} 32... Rd5 {[%clk 0:00:42.9]} 33.
Rdb1 {[%clk 0:00:03.8]} 33... Rxa2 {[%clk 0:00:42.4]} 34. R5b4 {[%clk
0:00:02.9]} 34... Rd8 {[%clk 0:00:41.8]} 35. Rc1 {[%clk 0:00:02.2]} 35... Rc8
{[%clk 0:00:40.3]} 36. Rb5 {[%clk 0:00:02.1]} 36... Ra5 {[%clk 0:00:37.7]} 37.
Rxa5 {[%clk 0:00:01.2]} 37... bxa5 {[%clk 0:00:38.6]} 38. Rb1 {[%clk 0:00:01.1]}
38... a4 {[%clk 0:00:38.5]} 0-1

[Event "Early-Titled-Tuesday-Blitz-February-06-2024"]
[Site "Chess.com"]
[Date "2024.02.06"]
[Round "6"]
[White "ExchangeAB"]
[Black "karinachess1"]
[Result "0-1"]
[WhiteElo "2428"]
[BlackElo "2635"]
[TimeControl "180+1"]
[EndTime "9:07:15 PST"]
[Termination "karinachess1 won by resignation"]

1. d4 {[%clk 0:03:00.9]} 1... Nf6 {[%clk 0:02:59.7]} 2. Nf3 {[%clk 0:03:01]}
2... e6 {[%clk 0:03:00]} 3. c3 {[%clk 0:03:00.5]} 3... Be7 {[%clk 0:02:57.1]} 4.
Bf4 {[%clk 0:03:00.1]} 4... b6 {[%clk 0:02:46.5]} 5. e3 {[%clk 0:02:59.3]} 5...
Bb7 {[%clk 0:02:46.6]} 6. h3 {[%clk 0:02:59.5]} 6... O-O {[%clk 0:02:42.5]} 7.
Be2 {[%clk 0:02:59.6]} 7... d6 {[%clk 0:02:35.4]} 8. O-O {[%clk 0:02:59.6]} 8...
Nbd7 {[%clk 0:02:34.8]} 9. Nbd2 {[%clk 0:02:59.2]} 9... Ne4 {[%clk 0:02:35]} 10.
Nxe4 {[%clk 0:02:59.1]} 10... Bxe4 {[%clk 0:02:35.9]} 11. Nd2 {[%clk 0:02:59.4]}
11... Bb7 {[%clk 0:02:35.1]} 12. Bf3 {[%clk 0:02:59.7]} 12... Bxf3 {[%clk
0:02:07.8]} 13. Qxf3 {[%clk 0:03:00.6]} 13... d5 {[%clk 0:02:08.3]} 14. Qe2
{[%clk 0:02:59.8]} 14... c5 {[%clk 0:02:06.4]} 15. Nf3 {[%clk 0:02:59.3]} 15...
Qc8 {[%clk 0:01:55.3]} 16. a4 {[%clk 0:02:59.3]} 16... Qb7 {[%clk 0:01:49]} 17.
Ne5 {[%clk 0:02:59]} 17... Nxe5 {[%clk 0:01:48.8]} 18. Bxe5 {[%clk 0:02:59.9]}
18... a6 {[%clk 0:01:44.6]} 19. Rfe1 {[%clk 0:02:57.3]} 19... b5 {[%clk
0:01:42.5]} 20. axb5 {[%clk 0:02:54.2]} 20... axb5 {[%clk 0:01:43.4]} 21. Qg4
{[%clk 0:02:49.8]} 21... g6 {[%clk 0:01:41.7]} 22. dxc5 {[%clk 0:02:26.4]} 22...
Bxc5 {[%clk 0:01:37.2]} 23. Qg5 {[%clk 0:02:21.3]} 23... Be7 {[%clk 0:01:34]}
24. Qh6 {[%clk 0:02:16]} 24... f6 {[%clk 0:01:33.5]} 25. Bg3 {[%clk 0:02:15.8]}
25... Rf7 {[%clk 0:01:27.5]} 26. Qf4 {[%clk 0:02:14.8]} 26... Bf8 {[%clk
0:01:10.5]} 27. Rxa8 {[%clk 0:02:10.6]} 27... Qxa8 {[%clk 0:01:11.4]} 28. e4
{[%clk 0:02:11.1]} 28... e5 {[%clk 0:01:00.3]} 29. Qf3 {[%clk 0:02:02.9]} 29...
dxe4 {[%clk 0:00:59.5]} 30. Qxe4 {[%clk 0:02:03.2]} 30... Qxe4 {[%clk
0:00:58.8]} 31. Rxe4 {[%clk 0:02:04.1]} 31... Rd7 {[%clk 0:00:59.5]} 32. Re2
{[%clk 0:01:55.7]} 32... Rd1+ {[%clk 0:00:58.9]} 33. Kh2 {[%clk 0:01:55.8]}
33... Bd6 {[%clk 0:00:53.8]} 34. f3 {[%clk 0:01:50.6]} 34... Kf7 {[%clk
0:00:52.1]} 35. Rc2 {[%clk 0:01:50.1]} 35... Bc5 {[%clk 0:00:49.3]} 36. Bf2
{[%clk 0:01:48.7]} 36... Bxf2 {[%clk 0:00:44.5]} 37. Rxf2 {[%clk 0:01:49.6]}
37... Ke6 {[%clk 0:00:43.9]} 38. Rc2 {[%clk 0:01:48.3]} 38... Kd5 {[%clk
0:00:43.1]} 39. b3 {[%clk 0:01:47.3]} 39... f5 {[%clk 0:00:35.7]} 40. c4+ {[%clk
0:01:46.8]} 40... bxc4 {[%clk 0:00:33.3]} 41. Rxc4 {[%clk 0:01:47.5]} 41... Rb1
{[%clk 0:00:29.7]} 42. Rc7 {[%clk 0:01:47.2]} 42... h5 {[%clk 0:00:27.3]} 43.
Rg7 {[%clk 0:01:44.7]} 43... e4 {[%clk 0:00:21.5]} 44. fxe4+ {[%clk 0:01:44.6]}
44... fxe4 {[%clk 0:00:22.4]} 45. Rxg6 {[%clk 0:01:44.5]} 45... e3 {[%clk
0:00:21.3]} 46. Rg5+ {[%clk 0:01:19.5]} 46... Kd4 {[%clk 0:00:21.3]} 47. Rg8
{[%clk 0:01:07.9]} 47... e2 {[%clk 0:00:21.6]} 48. Re8 {[%clk 0:01:08.2]} 48...
e1=Q {[%clk 0:00:21.4]} 49. Rxe1 {[%clk 0:01:09.1]} 49... Rxe1 {[%clk
0:00:22.1]} 50. Kg3 {[%clk 0:01:09.2]} 50... Re2 {[%clk 0:00:16.4]} 51. b4
{[%clk 0:00:56.9]} 51... Ke5 {[%clk 0:00:16.8]} 52. Kh4 {[%clk 0:00:54.9]} 52...
Rxg2 {[%clk 0:00:16.5]} 53. Kxh5 {[%clk 0:00:55.1]} 53... Kf6 {[%clk 0:00:16.7]}
0-1